bitfinex/quotes_ETHUSD_20240729
["timestamp","ask_amount","ask_price","bid_price","bid_amount"]
[1722272742812,0.630357,3297.5,3296.6,1.58324309]
[1722272743062,2.4887,3297.7,3296.6,0.69123013]
[1722272743063,0.05471199,3296.8,3296.6,0.69123013]
[1722272743216,3.03231,3297.9,3296.7,1.58305367]
[1722272743408,3.64,3299.1,3297.2,0.63087927]
[1722272743614,3.08720963,3297.8,3297.3,1.58305367]
[1722272743920,3.08720963,3297.8,3297.2,0.63087927]
[1722272743921,3.03251,3297.6,3297.4,1.58282831]
[1722272744123,0.05125955,3297.7,3297.3,0.69153499]
[1722272744454,3.64,3299.9,3297.6,0.63087927]
[1722272744455,3.03105,3299.2,3297.6,0.63087927]
[1722272744664,3.03142,3298.8,3297.5,0.63087927]
[1722272744839,3.03142,3298.8,3297.3,1.25144701]
[1722272744840,3.03197,3298.2,3297.6,1.58265133]
[1722272745013,3.0319,3298.3,3297.4,0.63087927]
[1722272745361,0.05018848,3298.2,3297.6,0.62977131]
[1722272745525,3.03152,3298.7,3297.7,2.16785715]
[1722272745526,3.03157,3298.7,3297.7,2.16785715]
[1722272745874,3.40599,3299.3,3297.5,0.62977131]
[1722272745875,0.04848147,3298.1,3297.5,0.62977131]
[1722272746163,3.03179,3298.4,3297.4,0.94465696]
[1722272746164,3.03183,3298.4,3297.4,0.62977131]
[1722272746325,0.04651276,3298.0,3297.5,1.5826606]
[1722272746666,3.03168,3298.5,3297.6,1.5825711]
[1722272746816,3.03177,3298.4,3297.5,0.62977131]
[1722272747017,3.07826535,3298.4,3297.4,0.62977131]
[1722272747214,3.03234,3297.8,3297.3,0.93537131]
[1722272747469,3.03234,3297.8,3296.8,1.57442827]
[1722272747470,3.335654,3297.7,3296.8,0.62977131]
[1722272747631,0.04649535,3298.4,3296.8,0.3056]
[1722272747838,0.04648861,3297.6,3296.8,0.3056]
[1722272748049,3.03248,3297.7,3296.8,0.3056]
[1722272748285,0.04645454,3297.5,3296.8,0.3056]
[1722272748422,0.04648861,3297.6,3296.8,0.3056]
[1722272748617,3.0326,3297.5,3296.4,0.93537131]
[1722272748822,3.07998933,3297.5,3296.5,1.58303792]
[1722272749136,0.04738933,3297.5,3296.6,0.06066212]
[1722272749339,3.03255,3297.6,3296.6,0.36626212]
[1722272749647,0.04722866,3297.4,3296.6,0.36626212]
[1722272749820,0.04563991,3297.5,3296.6,0.36626212]
[1722272750015,0.04554829,3297.3,3296.6,3.39968212]
[1722272750275,4.47789,3298.5,3296.8,1.8056]
[1722272750276,0.04558237,3297.4,3296.8,1.8056]
[1722272750563,3.03193,3298.3,3297.2,0.3056]
[1722272750868,3.03204,3298.2,3297.3,0.06064689]
[1722272751082,3.03155,3298.7,3297.3,3.39901689]
[1722272751224,0.375,3299.3,3297.5,3.03253]
[1722272751578,0.375,3299.3,3297.6,0.3056]
[1722272751579,3.03159,3298.6,3297.6,0.3056]
[1722272751756,3.03171,3298.5,3297.6,0.3056]
[1722272752139,0.375,3299.3,3297.4,2.7936]
[1722272752341,3.03159,3298.6,3297.5,3.36624335]
[1722272752561,3.03168,3298.5,3297.5,3.95166769]
[1722272752778,3.03168,3298.5,3297.5,0.95166769]
[1722272752956,3.03199,3298.2,3297.4,2.488]
[1722272753145,3.03178,3298.4,3297.4,2.488]
[1722272753343,0.04115962,3298.1,3297.2,1.8056]
[1722272753534,3.03186,3298.3,3297.0,0.3056]
[1722272753722,3.03186,3298.3,3297.2,0.3056]
[1722272753922,0.04119368,3298.2,3297.2,0.3056]
[1722272754127,0.04119368,3298.2,3297.3,0.0606467]
[1722272754332,3.03239,3297.8,3296.8,7.2498]
[1722272754676,3.03181,3298.4,3296.9,0.06065297]
[1722272754677,3.03179,3298.4,3296.9,0.06065297]
[1722272754981,0.04102334,3297.7,3297.0,6.03720837]
[1722272755184,2.7582,3299.3,3297.0,3.09369389]
[1722272755475,0.03902425,3297.6,3297.5,0.3056]
[1722272755639,3.03155,3298.7,3297.5,0.40101024]
[1722272755845,0.375,3299.3,3297.6,0.40100735]
[1722272756062,12.2506,3300.0,3297.6,0.40100735]
[1722272756063,10.0,3300.0,3299.2,3.64]
[1722272756259,10.0,3300.0,3298.8,4.561]
[1722272756260,10.0,3300.0,3299.9,3.64]
[1722272756575,10.0,3300.0,3298.2,5.20498073]
[1722272756576,1.0,3299.9,3299.3,3.64]
[1722272756779,4.0304,3299.9,3299.3,3.64]
[1722272757082,1.0,3299.9,3299.3,3.64]
[1722272757234,10.0,3300.0,3299.3,3.64]
[1722272757559,10.0,3300.0,3298.7,3.64]
[1722272758475,10.0,3300.0,3299.3,3.64]
[1722272758781,9.989,3300.0,3298.8,0.09537264]
[1722272758978,11.290918,3300.0,3298.8,0.09537264]
[1722272759678,14.321258,3300.0,3298.8,0.09537264]
[1722272759880,9.989,3300.0,3298.9,0.06062862]
[1722272760080,9.989,3300.0,3298.8,0.15599178]
[1722272760247,7.73911028,3300.0,3298.9,0.09536975]
[1722272760453,6.05164652,3300.0,3298.9,0.09536975]
[1722272760780,3.03077,3299.5,3298.9,0.09536975]
[1722272760996,9.08195652,3300.0,3298.9,0.09536975]
[1722272761523,6.05164652,3300.0,3298.9,0.09536975]
[1722272762007,3.03067,3299.6,3298.9,0.09536975]
[1722272762326,3.03113,3299.1,3298.9,0.09536975]
[1722272762607,3.334333,3299.0,3298.9,0.09536975]
[1722272762903,3.36826594,3299.0,3298.9,0.09536975]
[1722272763122,0.33704594,3299.0,3297.6,0.06063987]
[1722272763283,0.03393294,3299.0,3298.3,3.393]
[1722272763823,0.03379028,3298.9,3298.3,3.393]
[1722272763973,6.05164652,3300.0,3298.3,3.393]
[1722272763974,3.0305,3299.8,3298.3,3.393]
[1722272764168,6.05164652,3300.0,3297.9,0.06063256]
[1722272764169,3.03066,3299.7,3298.8,3.393]
[1722272764493,0.303066,3299.7,3298.8,3.393]
[1722272764830,9.08195652,3300.0,3298.8,3.393]
[1722272764831,3.03039,3299.9,3298.8,3.393]
[1722272765108,6.05164652,3300.0,3298.8,3.393]
[1722272765482,6.05164652,3300.0,3299.3,3.393]
[1722272765684,6.05164652,3300.0,3298.9,3.6986]
[1722272765901,6.95982317,3300.0,3298.9,3.393]
[1722272766281,6.05164652,3300.0,3299.0,0.36622295]
[1722272766483,6.05164652,3300.0,3299.0,0.3056]
[1722272766712,3.0304,3299.9,3299.0,0.3056]
[1722272766878,6.05164652,3300.0,3299.0,0.3056]
[1722272767115,9.08196652,3300.0,3299.0,0.3056]
[1722272767298,0.90819665,3299.9,3299.0,0.3056]
[1722272767513,0.90819665,3299.9,3298.5,3.3056]
[1722272767714,9.08194652,3300.0,3298.7,0.3056]
[1722272768084,9.08194652,3300.0,3298.6,0.09537842]
[1722272768085,3.03042,3299.9,3298.6,0.09537842]
[1722272768281,3.03058,3299.7,3298.6,0.09537842]
[1722272768480,3.03052,3299.8,3298.6,0.09537842]
[1722272768790,0.303052,3299.7,3298.6,0.09537842]
[1722272768986,9.08196652,3300.0,3298.7,0.0606285]
[1722272768987,6.05164652,3300.0,3298.7,0.0606285]
[1722272769225,6.05164652,3300.0,3298.6,0.09537842]
[1722272769395,3.0304,3299.9,3298.6,0.09537842]
[1722272769927,3.03062,3299.7,3298.6,0.40097842]
[1722272770222,3.03085,3299.4,3298.6,0.40097842]
[1722272770446,5.4658,3299.8,3298.6,0.09537842]
[1722272770736,3.202,3299.6,3297.3,1.5]
[1722272771029,3.202,3299.6,3297.4,0.09541313]
[1722272771030,3.0314,3298.8,3297.4,0.09541313]
[1722272771434,3.0312,3299.1,3297.5,0.0606412]
[1722272771728,3.03138,3298.9,3297.4,0.09541313]
[1722272771934,3.334548,3298.8,3297.4,0.25495444]
[1722272772111,0.303138,3298.8,3297.4,0.25495444]
[1722272772317,0.303138,3298.8,3297.4,0.09541313]
[1722272772518,0.303138,3298.8,3297.4,0.40101313]
[1722272773044,0.03389596,3298.7,3297.4,0.40101313]
[1722272773241,3.06546596,3298.7,3297.4,0.40101313]
[1722272773466,0.03389596,3298.7,3297.4,0.40101313]
[1722272774032,3.06547596,3298.7,3297.4,0.40101313]
[1722272774317,3.40233736,3298.7,3297.4,0.40101313]
[1722272774514,0.03389596,3298.7,3297.5,0.06064354]
[1722272774754,3.03094,3299.4,3297.8,0.3056]
[1722272774978,0.03157993,3298.6,3297.9,0.06063269]
[1722272775261,3.03041,3299.9,3298.1,0.3056]
[1722272775455,4.36406913,3300.0,3298.6,0.9288523]
[1722272775657,0.03008059,3299.8,3298.8,0.3056]
[1722272775953,4.36406913,3300.0,3299.0,0.3056]
[1722272776265,4.36406913,3300.0,3299.2,0.3056]
[1722272776266,0.02948481,3299.7,3299.2,0.3056]
[1722272776468,4.36406913,3300.0,3299.3,3.32031688]
[1722272776469,0.02959489,3299.9,3299.3,3.32031688]
[1722272776630,4.36406913,3300.0,3299.3,3.32031688]
[1722272776631,4.36406913,3300.0,3299.4,2.63632341]
[1722272776957,4.36406913,3300.0,3299.2,0.68386348]
[1722272776958,0.02956084,3299.8,3299.2,0.68386348]
[1722272777258,3.76093449,3300.0,3299.3,2.79824547]
[1722272777470,0.02875851,3299.7,3299.4,2.63640628]
[1722272777616,3.76093449,3300.0,3299.1,0.6232523]
[1722272777820,3.76093449,3300.0,3298.9,0.6232523]
[1722272777821,0.02854821,3299.6,3298.9,0.6232523]
[1722272778138,3.03026,3300.1,3299.0,2.63669785]
[1722272778351,0.02859809,3299.5,3299.1,1.05467914]
[1722272778658,0.02859809,3299.5,3298.9,0.6232523]
[1722272778659,0.02876832,3300.0,3298.8,0.6232523]
[1722272778815,0.0285972,3299.4,3298.9,3.26013588]
[1722272779015,3.02969,3300.7,3299.2,0.6232523]
[1722272779219,0.302969,3300.6,3299.3,2.63688358]
[1722272779464,2.4167,3301.0,3299.3,2.63688358]
[1722272779465,3.02963,3300.8,3299.4,2.63688358]
[1722272779693,3.02981,3300.6,3299.6,0.6232523]
[1722272779983,3.02931,3301.1,3299.7,3.26013588]
[1722272780184,3.02945,3301.0,3299.9,0.6232523]
[1722272780492,3.02945,3301.0,3300.2,0.6232523]
[1722272780788,3.17463,3301.2,3300.3,2.63688358]
[1722272780789,3.02956,3300.8,3300.3,2.63688358]
[1722272780979,3.02956,3300.8,3300.0,0.93487845]
[1722272780980,3.02945,3301.0,3300.0,0.6232523]
[1722272781137,0.14541,3301.2,3300.2,0.6232523]
[1722272781338,3.02929,3301.1,3300.4,0.6232523]
[1722272781538,3.02929,3301.1,3300.5,3.25937953]
[1722272781763,3.17461,3301.2,3300.6,2.63612723]
[1722272782094,0.14541,3301.2,3300.7,1.05445089]
[1722272782252,0.14541,3301.2,3300.8,2.63597682]
[1722272782253,0.02885468,3301.1,3300.8,2.63597682]
[1722272782576,0.02885468,3301.1,3300.9,1.0543108]
[1722272782780,0.02885468,3301.1,3300.7,0.6232523]
[1722272782965,0.02885468,3301.1,3300.8,2.63588076]
[1722272783135,0.02885468,3301.1,3300.5,0.93487845]
[1722272783136,0.02885468,3301.1,3300.6,0.6232523]
[1722272783335,0.02885468,3301.1,3300.7,2.63587963]
[1722272783535,3.05814468,3301.1,3300.8,2.63587963]
[1722272783773,3.02938,3301.0,3300.9,2.63587963]
[1722272783977,3.05807042,3301.0,3300.9,1.05434971]
[1722272784177,0.02869042,3301.0,3300.9,1.05434971]
[1722272784386,0.02869042,3301.0,3300.9,2.63585927]
[1722272784543,3.17468,3301.2,3300.9,2.63585927]
[1722272784766,3.17468,3301.2,3301.0,2.63586815]
[1722272784966,0.14541,3301.2,3301.1,1.05434726]
[1722272785209,6.20381,3301.2,3301.1,1.05434726]
[1722272785406,6.20381,3301.2,3300.7,0.93487845]
[1722272785407,3.02938,3301.0,3300.8,0.6232523]
[1722272785705,3.02947,3300.9,3300.7,0.93487845]
[1722272786007,3.02939,3301.0,3300.8,4.74459455]
[1722272786190,3.17462,3301.2,3300.9,2.63589891]
[1722272786391,3.17462,3301.2,3301.0,2.63589891]
[1722272786567,3.17462,3301.2,3301.1,2.63589891]
[1722272786768,3.17462,3301.2,3300.6,1.2465046]
[1722272786769,3.794986,3301.2,3300.6,0.63131208]
[1722272786969,3.794986,3301.2,3300.7,1.0545069]
[1722272786970,3.02965,3300.8,3300.7,1.0545069]
[1722272787271,3.02946,3301.0,3300.7,1.05449475]
[1722272787484,3.02946,3301.0,3300.0,1.57944222]
[1722272787485,3.02964,3300.8,3300.4,1.56619053]
[1722272787713,3.17463,3301.2,3300.5,2.6363131]
[1722272787863,3.0293,3301.1,3300.7,0.63131208]
[1722272788063,0.14541,3301.2,3300.8,3.26762518]
[1722272788306,0.14541,3301.2,3300.5,1.2465046]
[1722272788307,0.02780249,3301.0,3300.9,3.26762518]
[1722272788614,0.02780249,3301.0,3300.9,2.6363131]
[1722272788810,0.14541,3301.2,3300.9,3.26821598]
[1722272789108,3.02929,3301.1,3301.0,2.6363131]
[1722272789407,6.05858,3301.1,3301.0,1.05452524]
[1722272789613,3.02954,3300.9,3300.6,0.63190288]
[1722272789914,3.02954,3300.9,3300.7,2.63588097]
[1722272790068,0.14541,3301.2,3300.5,0.63190288]
[1722272790273,3.02933,3301.1,3300.6,2.63605281]
[1722272790498,3.02949,3300.9,3300.7,1.05442112]
[1722272790700,3.02949,3300.9,3300.3,0.63190288]
[1722272790921,3.02967,3300.7,3300.4,2.63604603]
[1722272791083,3.0296,3300.8,3300.2,0.63190288]
[1722272791296,3.0296,3300.8,3300.0,15.93487845]
[1722272791297,3.0296,3300.8,3300.3,1.05449075]
[1722272791594,3.0299,3300.5,3300.0,15.63190288]
[1722272791794,3.03,3300.4,3300.1,1.05451396]
[1722272791979,0.7244187,3301.0,3300.0,15.0]
[1722272792223,3.02964,3300.8,3300.0,15.0]
[1722272792429,3.02955,3300.9,3300.1,2.63617388]
[1722272792724,3.02955,3300.9,3300.0,15.0]
[1722272792725,3.0298,3300.6,3300.0,15.0]
[1722272793108,3.02959,3300.8,3300.0,15.0]
[1722272793314,3.02967,3300.7,3300.0,15.0]
[1722272793540,6.23132,3301.1,3300.0,15.0]
[1722272793757,3.202,3301.1,3300.0,15.0]
[1722272793957,3.02979,3300.6,3300.0,15.0]
[1722272794715,3.02985,3300.5,3300.0,15.0]
[1722272794916,0.334741,3301.0,3300.0,15.0]
[1722272795257,3.0295,3300.9,3300.0,15.0]
[1722272795774,3.02961,3300.8,3300.0,15.0]
[1722272796007,0.14541,3301.2,3300.0,15.0]
[1722272796008,3.02967,3300.7,3300.0,15.0]
[1722272796111,3.270681,3301.1,3300.0,15.0]
[1722272796112,3.02958,3300.8,3300.0,15.0]
[1722272796317,0.14541,3301.2,3300.0,15.0]
[1722272796565,3.02965,3300.8,3300.0,15.0]
[1722272796775,6.05929,3300.8,3300.0,15.0]
[1722272797073,3.02964,3300.8,3300.0,15.0]
[1722272797373,3.02966,3300.7,3300.0,15.0]
[1722272797524,3.02942,3301.0,3300.0,15.0]
[1722272797720,3.02999,3300.4,3300.0,15.0]
[1722272798637,6.06042,3300.1,3300.0,15.0]
[1722272798841,3.03021,3300.1,3300.0,15.0]
[1722272799228,3.02991,3300.5,3300.0,15.0]
[1722272799426,0.55,3301.0,3300.0,15.0]
[1722272799427,0.62005,3300.8,3300.0,15.0]
[1722272799641,6.869005,3301.1,3300.0,15.0]
[1722272799642,3.02966,3300.7,3300.0,15.0]
[1722272799844,3.02952,3300.9,3300.0,15.0]
[1722272800028,3.666985,3301.1,3300.0,15.0]
[1722272800234,3.02918,3301.3,3300.0,15.0]
[1722272800475,3.17463,3301.2,3300.1,1.8603]
[1722272800678,0.14541,3301.2,3300.1,1.8603]
[1722272800820,0.14541,3301.2,3300.4,3.603]
[1722272801719,3.0293,3301.1,3300.4,3.603]
[1722272801920,3.17462,3301.2,3300.4,3.603]
[1722272802345,0.14541,3301.2,3300.4,3.603]
[1722272802559,0.14541,3301.2,3300.1,1.8603]
[1722272803277,0.14541,3301.2,3300.2,1.68603]
[1722272805117,0.14541,3301.2,3300.5,3.603]
[1722272805764,0.14541,3301.2,3301.0,3.603]
[1722272805964,0.08719556,3301.2,3301.0,3.603]
[1722272806752,0.08719556,3301.2,3300.5,3.603]
[1722272807041,0.08719556,3301.2,3300.6,0.3603]
[1722272807845,0.08719556,3301.2,3300.2,7.71614]
[1722272807846,0.08719556,3301.2,3300.2,1.68603]
[1722272808072,0.08719556,3301.2,3300.0,20.9322]
[1722272808073,0.08719556,3301.2,3300.0,18.603]
[1722272808281,3.11642556,3301.2,3300.0,18.603]
[1722272808873,3.02939,3301.0,3300.0,18.603]
[1722272809230,3.02962,3300.8,3300.0,18.603]
[1722272809641,3.02962,3300.8,3300.0,15.0]
[1722272810073,0.08719556,3301.2,3300.0,19.99252844]
[1722272810441,3.11645556,3301.2,3300.0,19.99252844]
[1722272810663,3.02944,3301.0,3300.0,19.99252844]
[1722272810867,3.11642556,3301.2,3300.0,19.99252844]
[1722272811315,0.08719556,3301.2,3300.4,3.603]
[1722272811497,0.08719556,3301.2,3300.5,0.3603]
[1722272811894,0.08719556,3301.2,3300.8,3.603]
[1722272812267,0.08719556,3301.2,3300.5,0.3603]
[1722272813229,0.08719556,3301.2,3300.8,3.603]
[1722272813524,0.08719556,3301.2,3300.9,0.3603]
[1722272814321,0.08719556,3301.2,3300.8,3.603]
[1722272815190,0.08719556,3301.2,3300.9,0.06058483]
[1722272815517,0.08719556,3301.2,3300.9,0.06058297]
[1722272816303,0.08719556,3301.2,3300.9,3.603]
[1722272817489,0.03719556,3301.2,3300.9,3.603]
[1722272817684,0.03719556,3301.2,3301.0,0.3603]
[1722272818215,0.03719556,3301.2,3300.9,3.603]
[1722272819399,0.03719556,3301.2,3301.0,0.06058541]
[1722272819901,0.02233195,3301.2,3301.1,1.0538112]
[1722272820116,0.02233195,3301.2,3301.0,3.08994541]
[1722272820301,3.02771,3302.9,3302.4,3.603]
[1722272820529,3.02753,3303.1,3301.9,3.603]
[1722272820859,3.0279,3302.7,3301.9,3.603]
[1722272821000,3.02746,3303.1,3301.9,3.603]
[1722272821445,3.0277,3302.9,3301.9,3.603]
[1722272821955,3.02746,3303.1,3301.9,3.603]
[1722272822142,6.055,3303.1,3301.9,3.603]
[1722272822370,3.02765,3302.9,3301.9,3.9633]
[1722272822534,2.2678,3303.2,3301.9,3.9633]
[1722272822535,3.02758,3303.0,3301.9,3.9633]
[1722272822745,3.02765,3302.9,3301.9,3.9633]
[1722272823277,5.4698,3303.2,3301.5,0.3038]
[1722272823561,5.4698,3303.2,3301.4,3.603]
[1722272823562,3.02825,3302.3,3301.4,3.603]
[1722272823760,5.4698,3303.2,3301.4,3.603]
[1722272823761,3.02803,3302.5,3301.4,3.603]
[1722272824351,3.330833,3302.5,3301.4,3.603]
[1722272824943,3.02769,3302.9,3301.5,0.060578]
[1722272825346,3.02806,3302.5,3301.4,3.603]
[1722272825527,6.05577,3302.7,3301.4,3.603]
[1722272825872,3.02787,3302.7,3301.4,3.603]
[1722272826035,3.02792,3302.6,3301.4,3.99368]
[1722272826463,3.02778,3302.8,3301.4,3.99368]
[1722272826634,3.02771,3302.9,3301.4,3.99368]
[1722272826835,2.2678,3303.2,3301.9,3.603]
[1722272827068,0.22678,3303.1,3301.4,6.26448]
[1722272827252,3.02797,3302.6,3301.4,6.26448]
[1722272827789,3.02815,3302.4,3301.4,3.99368]
[1722272827954,6.05593,3302.6,3301.4,3.99368]
[1722272828136,3.02793,3302.6,3301.4,3.99368]
[1722272828792,3.02776,3302.8,3301.4,3.603]
[1722272828940,3.42878,3303.1,3301.4,3.603]
[1722272828941,3.02828,3302.2,3301.4,3.603]
[1722272829143,3.02813,3302.4,3301.4,3.603]
[1722272829446,3.02813,3302.4,3301.4,3.99368]
[1722272829951,3.02842,3302.1,3301.4,3.99368]
[1722272830106,3.02822,3302.3,3301.4,3.603]
[1722272830276,0.569658,3303.0,3301.4,3.603]
[1722272830277,0.569658,3303.0,3301.5,0.06057935]
[1722272830614,3.02759,3303.0,3301.5,0.06057935]
[1722272830757,3.02758,3303.0,3301.5,0.06057935]
[1722272830958,2.2678,3303.2,3301.9,3.603]
[1722272831209,3.12560265,3303.9,3302.0,0.06056794]
[1722272831210,3.02723,3303.4,3302.0,0.06056794]
[1722272831379,2.4426,3303.8,3302.0,0.06056794]
[1722272831380,3.02709,3303.5,3302.4,3.603]
[1722272831578,3.02709,3303.5,3302.0,2.289]
[1722272831579,3.02747,3303.1,3302.0,2.289]
[1722272831781,3.02757,3303.0,3301.9,3.603]
[1722272832003,5.6446,3303.8,3301.5,3.0]
[1722272832004,3.02797,3302.6,3301.5,3.0]
[1722272832236,3.02807,3302.5,3301.4,5.9638]
[1722272832394,3.02815,3302.4,3301.4,5.9638]
[1722272832582,3.02826,3302.3,3301.4,5.9638]
[1722272832782,3.02835,3302.2,3301.4,3.603]
[1722272832978,3.02837,3302.1,3301.4,3.603]
[1722272834121,0.605658,3302.1,3301.1,0.09530619]
[1722272834332,6.0565,3302.3,3301.1,0.09530619]
[1722272834530,3.0283,3302.2,3301.1,0.09530619]
[1722272834822,3.02806,3302.5,3301.3,3.603]
[1722272835025,3.02827,3302.3,3301.3,3.603]
[1722272835385,2.4448,3302.7,3301.3,3.603]
[1722272835386,5.47266,3302.7,3301.3,3.603]
[1722272835599,0.867466,3302.6,3301.3,3.603]
[1722272835930,6.6397,3304.0,3301.4,0.06057538]
[1722272835931,2.46,3303.3,3301.4,0.06057538]
[1722272836087,2.46,3303.3,3301.8,3.603]
[1722272836298,2.46,3303.3,3301.9,0.06056453]
[1722272836497,2.46,3303.3,3301.8,3.603]
[1722272836498,3.02751,3303.1,3301.8,3.603]
[1722272836694,3.02737,3303.2,3301.8,3.603]
[1722272836939,2.47,3304.0,3301.9,2.67396452]
[1722272837254,2.47,3304.0,3302.3,3.603]
[1722272837255,0.01,3304.0,3302.3,3.603]
[1722272837600,3.02718,3303.4,3302.3,3.603]
[1722272837845,3.202,3303.8,3301.9,2.6134]
[1722272838157,3.0274,3303.2,3301.9,2.6134]
[1722272838315,3.0276,3303.0,3302.0,0.62164]
[1722272838515,3.0276,3303.0,3301.8,3.603]
[1722272838701,3.02792,3302.6,3301.4,0.09529753]
[1722272838902,3.202,3303.4,3301.4,0.09529753]
[1722272838903,3.02758,3303.0,3301.4,0.09529753]
[1722272839143,0.302758,3302.9,3301.5,0.67807188]
[1722272839350,3.202,3303.5,3301.9,3.603]
[1722272839351,3.02715,3303.5,3301.9,3.603]
[1722272839528,3.02729,3303.3,3301.9,3.603]
[1722272839737,3.02743,3303.2,3302.0,0.06056419]
[1722272839954,3.02772,3302.9,3301.9,3.603]
[1722272840103,0.302772,3302.9,3301.9,3.603]
[1722272840300,3.02807,3302.5,3301.5,0.61749975]
[1722272841517,3.02801,3302.5,3301.5,0.61749975]
[1722272841701,3.02787,3302.7,3301.5,0.61749975]
[1722272841917,3.02801,3302.5,3301.5,0.61749975]
[1722272842618,3.02824,3302.3,3301.5,0.61749975]
[1722272842815,3.02802,3302.5,3301.4,0.09529753]
[1722272843030,3.02792,3302.6,3301.4,3.69829753]
[1722272843306,3.02783,3302.7,3301.4,0.09529753]
[1722272843307,3.02802,3302.5,3301.4,0.09529753]
[1722272843645,3.02784,3302.7,3301.7,2.699]
[1722272844166,3.330442,3302.9,3301.7,2.699]
[1722272844319,3.330442,3302.9,3301.7,2.9689]
[1722272844645,0.302772,3302.9,3301.7,2.9689]
[1722272844819,3.02762,3303.0,3302.1,2.699]
[1722272845435,3.02703,3303.6,3302.5,2.699]
[1722272845624,3.02721,3303.4,3302.1,2.699]
[1722272845938,3.02746,3303.1,3302.1,2.699]
[1722272846322,3.330051,3303.3,3302.1,2.699]
[1722272846834,0.302721,3303.3,3302.1,2.699]
[1722272847018,6.22876,3303.9,3302.5,2.699]
[1722272847222,6.22876,3303.9,3302.1,2.699]
[1722272847223,3.02734,3303.3,3302.1,2.699]
[1722272847769,3.02745,3303.2,3302.1,2.699]
[1722272848654,3.02754,3303.1,3302.1,2.699]
[1722272848862,3.330294,3303.1,3302.1,2.699]
[1722272849069,0.302754,3303.1,3302.1,2.699]
[1722272849221,6.22921,3303.4,3302.1,2.699]
[1722272849422,3.0277,3302.9,3302.1,2.699]
[1722272849669,3.02775,3302.8,3302.1,2.699]
[1722272850775,3.02755,3303.0,3302.1,2.699]
[1722272851121,3.0277,3302.9,3302.1,2.699]
[1722272851622,3.02741,3303.2,3302.1,2.9689]
[1722272851866,3.02751,3303.1,3302.1,2.9689]
[1722272852851,3.02755,3303.0,3302.1,2.9689]
[1722272853514,3.0,3303.9,3302.1,2.699]
[1722272853515,3.202,3303.5,3302.1,2.699]
[1722272853721,3.02737,3303.2,3302.1,2.699]
[1722272853922,3.0,3303.9,3302.1,2.699]
[1722272854155,3.03667,3304.0,3301.8,0.06056755]
[1722272854156,3.02714,3303.5,3302.5,2.699]
[1722272855664,3.0271,3303.5,3302.5,2.699]
[1722272855880,3.202,3303.5,3301.7,0.2699]
[1722272856021,3.02766,3302.9,3301.7,2.699]
[1722272856223,3.633177,3302.9,3301.7,2.699]
[1722272856549,3.02787,3302.7,3301.7,2.699]
[1722272856751,3.02791,3302.6,3301.7,2.699]
[1722272857130,3.02783,3302.7,3301.7,2.699]
[1722272857637,3.02783,3302.7,3301.4,0.09529753]
[1722272857638,3.02813,3302.4,3301.4,0.09529753]
[1722272857853,3.02801,3302.5,3301.3,2.699]
[1722272858026,3.02796,3302.6,3301.3,2.699]
[1722272858223,3.0281,3302.4,3301.3,2.699]
[1722272858425,0.30281,3302.4,3301.3,2.699]
[1722272858644,3.02778,3302.8,3301.7,2.699]
[1722272858939,3.02792,3302.6,3301.7,2.699]
[1722272859138,3.3202,3303.1,3301.7,2.699]
[1722272859139,3.02759,3303.0,3301.7,2.699]
[1722272859356,3.02783,3302.7,3301.7,2.699]
[1722272859661,3.02759,3303.0,3301.7,2.699]
[1722272859822,3.02774,3302.8,3301.7,2.699]
[1722272860421,3.02797,3302.6,3301.7,2.699]
[1722272860665,3.02801,3302.5,3301.7,2.699]
[1722272861030,3.02794,3302.6,3301.7,2.699]
[1722272861493,3.02778,3302.8,3301.7,2.9689]
[1722272861796,3.02778,3302.8,3301.0,5.41269]
[1722272861797,3.02854,3302.0,3301.3,2.699]
[1722272861959,3.02832,3302.2,3301.3,2.699]
[1722272862158,3.02838,3302.1,3301.3,2.699]
[1722272862700,0.605647,3302.2,3301.3,2.699]
[1722272862988,3.02794,3302.6,3301.7,2.699]
[1722272863143,0.302794,3302.5,3301.7,2.699]
[1722272863349,3.02765,3302.9,3301.7,2.699]
[1722272863646,0.3202,3303.1,3301.7,2.699]
[1722272863908,3.02785,3302.7,3301.7,2.699]
[1722272864058,3.02758,3303.0,3301.7,2.699]
[1722272864249,3.02778,3302.8,3301.7,2.9689]
[1722272864580,3.02796,3302.6,3301.7,2.9689]
[1722272864780,3.02801,3302.5,3301.7,2.699]
[1722272865284,3.02781,3302.8,3301.7,2.699]
[1722272865699,3.02782,3302.7,3301.7,2.699]
[1722272865923,0.334778,3303.0,3301.7,2.699]
[1722272866044,3.02801,3302.5,3301.7,2.699]
[1722272866475,3.02794,3302.6,3301.7,2.699]
[1722272866691,3.02785,3302.7,3301.7,2.699]
[1722272866862,3.02793,3302.6,3301.7,2.699]
[1722272867487,3.02773,3302.9,3301.7,2.699]
[1722272867488,3.02781,3302.8,3301.7,2.699]
[1722272867697,3.02781,3302.8,3301.8,0.2699]
[1722272867698,3.02774,3302.8,3301.8,0.2699]
[1722272868155,3.0276,3303.0,3301.8,0.2699]
[1722272868500,3.02765,3302.9,3301.8,0.2699]
[1722272869566,6.37522,3303.1,3301.8,0.2699]
[1722272869774,3.02755,3303.0,3301.9,0.29689]
[1722272870177,3.02766,3302.9,3301.9,0.29689]
[1722272870392,3.02774,3302.8,3301.9,0.29689]
[1722272870558,3.02774,3302.8,3301.7,2.699]
[1722272870559,3.02796,3302.6,3301.7,2.699]
[1722272870916,0.3202,3303.1,3301.1,0.63546189]
[1722272870917,3.5222,3303.1,3301.1,0.63546189]